[Event "26th Zadar Open 2019"]
[Site "Zadar"]
[Date "2019.12.17"]
[Round "4.19"]
[White "Spalir, Jernej"]
[Black "Hrescak, Ivana"]
[Result "1-0"]
[ECO "B91"]
[WhiteElo "2429"]
[BlackElo "2194"]
[Annotator "NA"]
[PlyCount "115"]
[EventDate "2019.12.15"]
[EventType "swiss"]
[EventCountry "CRO"]
[SourceTitle "playchess.com"]
[Source "ChessBase"]
[SourceQuality "1"]
[TimeControl "40/5400+30:1800+30"]

1. e4 {[%emt 0:00:00]} c5 {[%emt 0:01:30]} 2. Nf3 {[%emt 0:00:00]} d6 {[%emt 0:01:30]} 3. d4 {[%emt 0:00:00]} cxd4 {[%emt 0:00:30]} 4. Nxd4 {[%emt 0:00:00]} Nf6 {[%emt 0:03:30]} 5. Nc3 {[%emt 0:00:30]} a6 {[%emt 0:00:30]} 6. g3 {[%emt 0:00:30]} e5 {[%emt 0:00:30]} 7. Nde2 {[%emt 0:00:30]} Be7 {[%emt 0:00:30]} 8. a4 {[%emt 0:00:30]} O-O {[%emt 0:00:30]} 9. Bg2 {[%emt 0:00:30]} Nc6 {[%emt 0:00:30]} 10. O-O {[%emt 0:02:30]} Be6 {[%emt 0:03:30]} 11. Nd5 {[%emt 0:00:30]} Bxd5 {[%emt 0:00:30]} 12. exd5 {[%emt 0:00:30]} Nb8 {[%emt 0:01:30]} 13. a5 {[%emt 0:08:30]} Nbd7 {[%emt 0:00:30]} 14. h3 {[%emt 0:00:30]} Rc8 {[%emt 0:01:30]} 15. Be3 {[%emt 0:00:30]} Ne8 {[%emt 0:05:30]} 16. Qd2 {[%emt 0:05:30]} f5 {[%emt 0:04:30]} 17. Rfc1 {[%emt 0:05:30]} Nef6 {[%emt 0:04:30]} 18. c4 {[%emt 0:02:30]} Nc5 {[%emt 0:03:30]} 19. Qd1 {[%emt 0:04:30]} h6 {[%emt 0:02:30]} 20. b4 {[%emt 0:06:30]} Nce4 {[%emt 0:05:30]} 21. Qd3 {[%emt 0:06:30]} Qd7 {[%emt 0:00:30]} 22. h4 {[%emt 0:04:30]} Rf7 {[%emt 0:19:30]} 23. Bb6 {[%emt 0:00:30]} Nh7 {[%emt 0:03:30]} 24. Bxe4 {[%emt 0:00:30]} fxe4 {[%emt 0:00:30]} 25. Qxe4 {[%emt 0:00:30]} Nf6 {[%emt 0:01:30]} 26. Qg2 {[%emt 0:02:30]} Qg4 {[%emt 0:01:30]} 27. f3 {[%emt 0:02:30]} Qf5 {[%emt 0:04:30]} 28. Rc3 {[%emt 0:00:30]} e4 {[%emt 0:05:30]} 29. f4 {[%emt 0:06:30]} Qg4 {[%emt 0:01:30]} 30. Re1 {[%emt 0:04:30]} Qd7 {[%emt 0:01:30]} 31. Ra1 {[%emt 0:07:30]} Qg4 {[%emt 0:01:30]} 32. Raa3 {[%emt 0:04:30]} g5 {[%emt 0:05:25]} 33. fxg5 {[%emt 0:07:20]} hxg5 {[%emt 0:00:30]} 34. hxg5 {[%emt 0:00:13]} Qxg5 {[%emt 0:00:17]} 35. Nf4 {[%emt 0:02:15]} Qg4 {[%emt 0:01:21]} 36. Qe2 {[%emt 0:00:11]} Qxe2 {[%emt 0:00:30]} 37. Nxe2 {[%emt 0:00:36]} Ng4 {[%emt 0:00:53]} 38. c5 {[%emt 0:04:38]} Ne5 {[%emt 0:01:23]} 39. Nf4 {[%emt 0:00:20]} Nf3+ {[%emt 0:02:45]} 40. Kf2 {[%emt 0:00:28]} Bf6 {[%emt 0:01:22]} 41. Rxf3 {[%emt 0:38:13]} exf3 {[%emt 0:31:10]} 42. cxd6 {[%emt 0:00:00]} Be5 {[%emt 0:00:00]} 43. Bc7 {[%emt 0:00:00]} Rd7 {[%emt 0:00:00]} 44. Kxf3 {[%emt 0:00:00]} Bxd6 {[%emt 0:00:00]} 45. Bxd6 {[%emt 0:00:00]} Rxd6 {[%emt 0:00:00]} 46. Ke4 {[%emt 0:00:00]} Kf7 {[%emt 0:00:00]} 47. Ke5 {[%emt 0:00:00]} Ke7 {[%emt 0:00:00]} 48. g4 {[%emt 0:00:00]} Rc4 {[%emt 0:00:21]} 49. Rh3 {[%emt 0:00:00]} Rf6 {[%emt 0:08:28]} 50. d6+ {[%emt 0:00:00]} Rxd6 {[%emt 0:02:02]} 51. Rh7+ {[%emt 0:00:00]} Ke8 {[%emt 0:00:00]} 52. Kxd6 {[%emt 0:00:00]} Rxf4 {[%emt 0:00:23]} 53. Rxb7 {[%emt 0:00:00]} Rxg4 {[%emt 0:00:14]} 54. Kc7 {[%emt 0:00:00]} Rc4+ {[%emt 0:01:10]} 55. Kb8 {[%emt 0:00:00]} Kd8 {[%emt 0:00:51]} 56. Ka7 {[%emt 0:00:00]} Rc6 {[%emt 0:03:00]} 57. Rb6 {[%emt 0:00:00]} Rc7+ {[%emt 0:00:41]} 58. Kxa6 {[%emt 0:00:00]} 1-0

[Event "26th Zadar Open 2019"]
[Site "Zadar"]
[Date "2019.12.17"]
[Round "4.20"]
[White "Nester, Ihor"]
[Black "de Francesco, Klaus"]
[Result "1-0"]
[ECO "E17"]
[WhiteElo "2329"]
[BlackElo "2273"]
[Annotator "NA"]
[PlyCount "109"]
[EventDate "2019.12.15"]
[EventType "swiss"]
[EventCountry "CRO"]
[SourceTitle "playchess.com"]
[Source "ChessBase"]
[SourceQuality "1"]
[TimeControl "40/5400+30:1800+30"]

1. Nf3 {[%emt 0:08:30]} Nf6 {[%emt 0:00:30]} 2. c4 {[%emt 0:00:00]} b6 {[%emt 0:00:00]} 3. g3 {[%emt 0:00:00]} Bb7 {[%emt 0:00:00]} 4. Bg2 {[%emt 0:00:00]} e6 {[%emt 0:00:30]} 5. O-O {[%emt 0:00:00]} Be7 {[%emt 0:00:00]} 6. d4 {[%emt 0:02:30]} O-O {[%emt 0:00:00]} 7. Re1 {[%emt 0:00:30]} Na6 {[%emt 0:00:30]} 8. Nc3 {[%emt 0:00:00]} d5 {[%emt 0:00:30]} 9. cxd5 {[%emt 0:01:00]} exd5 {[%emt 0:00:30]} 10. Bf4 {[%emt 0:01:30]} Re8 {[%emt 0:01:30]} 11. Ne5 {[%emt 0:04:30]} c5 {[%emt 0:00:30]} 12. dxc5 {[%emt 0:08:30]} Nxc5 {[%emt 0:00:30]} 13. Rc1 {[%emt 0:04:30]} Bd6 {[%emt 0:06:30]} 14. Nd3 {[%emt 0:01:30]} Nxd3 {[%emt 0:02:30]} 15. Qxd3 {[%emt 0:00:00]} Bxf4 {[%emt 0:00:00]} 16. gxf4 {[%emt 0:00:00]} Rc8 {[%emt 0:03:00]} 17. e3 {[%emt 0:06:30]} Qd7 {[%emt 0:02:30]} 18. Ne2 {[%emt 0:03:30]} Qa4 {[%emt 0:01:30]} 19. a3 {[%emt 0:04:30]} Ba6 {[%emt 0:01:30]} 20. Qd4 {[%emt 0:02:30]} Qb3 {[%emt 0:01:30]} 21. Ng3 {[%emt 0:01:30]} Rc2 {[%emt 0:04:30]} 22. Rxc2 {[%emt 0:08:30]} Qxc2 {[%emt 0:00:30]} 23. Bh3 {[%emt 0:00:30]} Bd3 {[%emt 0:02:30]} 24. Qb4 {[%emt 0:09:30]} h5 {[%emt 0:01:30]} 25. Bf1 {[%emt 0:06:30]} Bxf1 {[%emt 0:04:30]} 26. Kxf1 {[%emt 0:00:30]} h4 {[%emt 0:02:30]} 27. Ne2 {[%emt 0:00:30]} Qf5 {[%emt 0:00:30]} 28. Nd4 {[%emt 0:06:30]} Qh3+ {[%emt 0:01:30]} 29. Ke2 {[%emt 0:00:30]} Qxh2 {[%emt 0:01:30]} 30. Nf3 {[%emt 0:00:00]} Qh3 {[%emt 0:00:30]} 31. Rg1 {[%emt 0:01:00]} Rc8 {[%emt 0:03:30]} 32. Nd4 {[%emt 0:01:27]} Qh2 {[%emt 0:01:30]} 33. Qe1 {[%emt 0:00:59]} Ne4 {[%emt 0:01:30]} 34. Kf3 {[%emt 0:02:22]} Qh3+ {[%emt 0:02:30]} 35. Ke2 {[%emt 0:00:02]} Qd7 {[%emt 0:02:30]} 36. Qf1 {[%emt 0:01:26]} h3 {[%emt 0:02:30]} 37. f5 {[%emt 0:12:07]} h2 {[%emt 0:03:30]} 38. Rh1 {[%emt 0:01:04]} Qc7 {[%emt 0:09:30]} 39. Qg2 {[%emt 0:00:24]} Qc4+ {[%emt 0:00:30]} 40. Kf3 {[%emt 0:00:22]} Nd2+ {[%emt 0:03:30]} 41. Kg4 {[%emt 0:30:55]} Qc7 {[%emt 0:04:30]} 42. Rxh2 {[%emt 0:00:00]} Ne4 {[%emt 0:04:30]} 43. Qh1 {[%emt 0:00:00]} Nf6+ {[%emt 0:00:30]} 44. Kf3 {[%emt 0:00:00]} Kf8 {[%emt 0:00:30]} 45. Rh8+ {[%emt 0:00:00]} Ke7 {[%emt 0:00:30]} 46. Rxc8 {[%emt 0:00:00]} Qxc8 {[%emt 0:00:00]} 47. Qh2 {[%emt 0:00:00]} Qc1 {[%emt 0:02:00]} 48. Kg2 {[%emt 0:00:00]} Qc8 {[%emt 0:05:30]} 49. b4 {[%emt 0:00:00]} a5 {[%emt 0:02:30]} 50. Qg3 {[%emt 0:00:00]} axb4 {[%emt 0:01:30]} 51. axb4 {[%emt 0:00:00]} Qc4 {[%emt 0:05:30]} 52. Qxg7 {[%emt 0:00:00]} Qc7 {[%emt 0:00:30]} 53. b5 {[%emt 0:00:00]} Ne8 {[%emt 0:00:30]} 54. Nc6+ {[%emt 0:00:00]} Kd6 {[%emt 0:02:30]} 55. Qf8+ {[%emt 0:00:00]} 1-0

[Event "26th Zadar Open 2019"]
[Site "Zadar"]
[Date "2019.12.17"]
[Round "4.21"]
[White "Deglmann, Ludwig"]
[Black "Sinanovic, Muhamed"]
[Result "0-1"]
[ECO "B20"]
[WhiteElo "2261"]
[BlackElo "2309"]
[Annotator "NA"]
[PlyCount "78"]
[EventDate "2019.12.15"]
[EventType "swiss"]
[EventCountry "CRO"]
[SourceTitle "playchess.com"]
[Source "ChessBase"]
[SourceQuality "1"]
[TimeControl "40/5400+30:1800+30"]

1. f4 {[%emt 0:00:30]} c5 {[%emt 0:06:30]} 2. Nf3 {[%emt 0:00:30]} Nc6 {[%emt 0:00:30]} 3. d3 {[%emt 0:02:30]} g6 {[%emt 0:00:30]} 4. g3 {[%emt 0:03:30]} Bg7 {[%emt 0:00:30]} 5. Bg2 {[%emt 0:00:00]} d6 {[%emt 0:01:30]} 6. O-O {[%emt 0:01:00]} e6 {[%emt 0:03:30]} 7. c3 {[%emt 0:01:30]} Nge7 {[%emt 0:01:30]} 8. Na3 {[%emt 0:01:30]} O-O {[%emt 0:01:30]} 9. e4 {[%emt 0:02:30]} f5 {[%emt 0:03:30]} 10. Be3 {[%emt 0:03:30]} b6 {[%emt 0:06:30]} 11. Bf2 {[%emt 0:03:30]} Rb8 {[%emt 0:04:30]} 12. Re1 {[%emt 0:00:30]} h6 {[%emt 0:02:30]} 13. exf5 {[%emt 0:05:30]} exf5 {[%emt 0:13:30]} 14. d4 {[%emt 0:03:30]} Ba6 {[%emt 0:07:30]} 15. b4 {[%emt 0:12:30]} cxb4 {[%emt 0:03:30]} 16. cxb4 {[%emt 0:00:30]} Bb7 {[%emt 0:00:30]} 17. Qb3+ {[%emt 0:05:30]} Kh7 {[%emt 0:04:30]} 18. Nc2 {[%emt 0:13:30]} Ng8 {[%emt 0:02:30]} 19. d5 {[%emt 0:01:30]} Nce7 {[%emt 0:00:30]} 20. Nfd4 {[%emt 0:00:30]} Qd7 {[%emt 0:04:30]} 21. Rad1 {[%emt 0:01:30]} Rfe8 {[%emt 0:05:30]} 22. Ne6 {[%emt 0:00:30]} Bh8 {[%emt 0:01:30]} 23. Ne3 {[%emt 0:08:30]} Nf6 {[%emt 0:00:30]} 24. Re2 {[%emt 0:04:30]} Nexd5 {[%emt 0:03:30]} 25. Nxd5 {[%emt 0:00:30]} Rxe6 {[%emt 0:00:30]} 26. Nxf6+ {[%emt 0:03:30]} Rxf6 {[%emt 0:00:30]} 27. Bd4 {[%emt 0:00:30]} Rf7 {[%emt 0:00:30]} 28. Bxh8 {[%emt 0:00:30]} Rxh8 {[%emt 0:03:52]} 29. Rxd6 {[%emt 0:00:30]} Qc7 {[%emt 0:00:30]} 30. g4 {[%emt 0:09:37]} Rg7 {[%emt 0:09:54]} 31. Red2 {[%emt 0:06:32]} Bxg2 {[%emt 0:01:21]} 32. Kxg2 {[%emt 0:00:06]} fxg4 {[%emt 0:00:18]} 33. f5 {[%emt 0:02:22]} Qb7+ {[%emt 0:03:10]} 34. Kg1 {[%emt 0:00:33]} Rf8 {[%emt 0:04:02]} 35. fxg6+ {[%emt 0:00:36]} Kh8 {[%emt 0:00:01]} 36. Rd8 {[%emt 0:01:57]} Qe7 {[%emt 0:00:08]} 37. Rxf8+ {[%emt 0:00:01]} Qxf8 {[%emt 0:00:02]} 38. Qe6 {[%emt 0:01:34]} Re7 {[%emt 0:00:25]} 39. Qc4 {[%emt 0:00:44]} Re1+ {[%emt 0:00:28]} 0-1

[Event "26th Zadar Open 2019"]
[Site "Zadar"]
[Date "2019.12.17"]
[Round "4.22"]
[White "Guttenthaler, Franz"]
[Black "Sahil, Tickoo"]
[Result "1-0"]
[ECO "E01"]
[WhiteElo "2304"]
[BlackElo "2259"]
[Annotator "NA"]
[PlyCount "61"]
[EventDate "2019.12.15"]
[EventType "swiss"]
[EventCountry "CRO"]
[SourceTitle "playchess.com"]
[Source "ChessBase"]
[SourceQuality "1"]
[TimeControl "40/5400+30:1800+30"]

1. d4 {[%emt 0:00:30]} d5 {[%emt 0:00:30]} 2. c4 {[%emt 0:00:00]} e6 {[%emt 0:00:00]} 3. Nf3 {[%emt 0:00:00]} Nf6 {[%emt 0:00:00]} 4. g3 {[%emt 0:00:00]} Bb4+ $11 {[%emt 0:01:30]} 5. Bd2 {[%emt 0:00:00]} Bd6 {[%emt 0:00:30]} 6. Bg2 {[%emt 0:00:30]} O-O {[%emt 0:00:00]} 7. O-O {[%emt 0:00:30]} c6 {[%emt 0:00:00]} 8. Nc3 {[%emt 0:00:30]} dxc4 {[%emt 0:00:30]} 9. e4 {[%emt 0:00:30]} Be7 {[%emt 0:00:30]} 10. a4 {[%emt 0:00:30]} c5 {[%emt 0:00:30]} 11. e5 {[%emt 0:01:30]} Nd5 {[%emt 0:16:30]} 12. dxc5 {[%emt 0:01:30]} Nxc3 {[%emt 0:00:30]} 13. Bxc3 {[%emt 0:00:30]} Bxc5 {[%emt 0:21:30]} 14. Nd2 {[%emt 0:03:30]} Nc6 {[%emt 0:10:30]} 15. Nxc4 {[%emt 0:01:30]} Rb8 {[%emt 0:05:30]} 16. Qg4 {[%emt 0:01:30]} Qc7 {[%emt 0:04:30]} 17. Rfd1 {[%emt 0:03:30]} Rd8 {[%emt 0:03:30]} 18. Nd6 {[%emt 0:03:30]} a5 {[%emt 0:16:47]} 19. Rac1 {[%emt 0:08:30]} Bd7 {[%emt 0:09:01]} 20. h4 {[%emt 0:02:30]} Be8 {[%emt 0:04:04]} 21. h5 {[%emt 0:05:30]} h6 {[%emt 0:00:11]} 22. Be4 {[%emt 0:15:30]} Bb4 {[%emt 0:00:42]} 23. Bb1 {[%emt 0:07:30]} Bxc3 {[%emt 0:00:11]} 24. Rxc3 {[%emt 0:00:30]} Nxe5 {[%emt 0:03:53]} 25. Qe4 {[%emt 0:02:30]} Qxd6 {[%emt 0:00:34]} 26. Rxd6 {[%emt 0:00:30]} Rxd6 {[%emt 0:00:04]} 27. Qxe5 {[%emt 0:00:30]} Rd1+ {[%emt 0:00:34]} 28. Kg2 {[%emt 0:00:30]} Rbd8 {[%emt 0:00:23]} 29. Be4 {[%emt 0:01:30]} R1d2 {[%emt 0:00:59]} 30. Qxa5 {[%emt 0:00:30]} R8d4 {[%emt 0:00:32]} 31. Rc8 {[%emt 0:00:30]} 1-0

[Event "26th Zadar Open 2019"]
[Site "Zadar"]
[Date "2019.12.17"]
[Round "4.23"]
[White "Ly, Dominik"]
[Black "Plenkovic, Zdenko"]
[Result "0-1"]
[ECO "E92"]
[WhiteElo "2220"]
[BlackElo "2355"]
[Annotator "NA"]
[PlyCount "78"]
[EventDate "2019.12.15"]
[EventType "swiss"]
[EventCountry "CRO"]
[SourceTitle "playchess.com"]
[Source "ChessBase"]
[SourceQuality "1"]
[TimeControl "40/5400+30:1800+30"]

1. c4 {[%emt 0:09:30]} g6 {[%emt 0:02:30]} 2. e4 {[%emt 0:00:30]} Bg7 {[%emt 0:02:30]} 3. d4 {[%emt 0:00:30]} d6 {[%emt 0:00:30]} 4. Nc3 {[%emt 0:03:30]} Nf6 {[%emt 0:00:30]} 5. Nf3 {[%emt 0:00:00]} O-O {[%emt 0:00:30]} 6. Be2 {[%emt 0:00:00]} e5 {[%emt 0:00:00]} 7. d5 {[%emt 0:00:30]} a5 {[%emt 0:00:00]} 8. Bg5 {[%emt 0:00:30]} h6 {[%emt 0:00:30]} 9. Bh4 {[%emt 0:00:30]} Na6 {[%emt 0:00:30]} 10. Nd2 {[%emt 0:00:00]} Bd7 {[%emt 0:03:30]} 11. O-O {[%emt 0:01:00]} Qe8 {[%emt 0:00:30]} 12. b3 {[%emt 0:00:00]} h5 {[%emt 0:00:30]} 13. f3 {[%emt 0:00:00]} Nh7 {[%emt 0:00:30]} 14. a3 {[%emt 0:00:30]} Bh6 {[%emt 0:01:30]} 15. Rb1 {[%emt 0:00:00]} Be3+ {[%emt 0:08:30]} 16. Kh1 {[%emt 0:03:00]} Bc5 {[%emt 0:03:30]} 17. Qc1 {[%emt 0:00:30]} f5 {[%emt 0:00:30]} 18. exf5 {[%emt 0:00:00]} gxf5 {[%emt 0:00:30]} 19. f4 {[%emt 0:00:00]} e4 {[%emt 0:03:30]} 20. Re1 {[%emt 0:00:30]} Qg6 {[%emt 0:07:30]} 21. Nf1 {[%emt 0:00:30]} Nf6 {[%emt 0:07:30]} 22. h3 {[%emt 0:00:30]} c6 {[%emt 0:12:30]} 23. Ne3 {[%emt 0:04:30]} Rac8 {[%emt 0:01:30]} 24. Nc2 {[%emt 0:15:30]} cxd5 {[%emt 0:11:30]} 25. Bxf6 {[%emt 0:03:30]} Rxf6 {[%emt 0:00:30]} 26. Nxd5 {[%emt 0:00:30]} Rf7 {[%emt 0:00:30]} 27. Qd2 {[%emt 0:10:30]} Kh7 {[%emt 0:05:30]} 28. Bf1 {[%emt 0:28:09]} Be6 {[%emt 0:06:30]} 29. b4 {[%emt 0:05:50]} Ba7 {[%emt 0:07:38]} 30. Nde3 {[%emt 0:04:19]} Qg3 {[%emt 0:04:07]} 31. c5 {[%emt 0:06:36]} dxc5 {[%emt 0:01:41]} 32. b5 {[%emt 0:00:48]} Bb8 {[%emt 0:00:56]} 33. Nd5 {[%emt 0:01:15]} Nc7 {[%emt 0:02:45]} 34. Re3 {[%emt 0:00:52]} Qg7 {[%emt 0:01:13]} 35. Nb6 {[%emt 0:00:50]} Rg8 {[%emt 0:00:43]} 36. Bc4 {[%emt 0:02:06]} Bxc4 {[%emt 0:00:23]} 37. Nxc4 {[%emt 0:00:11]} Ne6 {[%emt 0:00:07]} 38. g3 {[%emt 0:00:58]} h4 {[%emt 0:01:14]} 39. Qd5 {[%emt 0:00:09]} Nxf4 {[%emt 0:00:34]} 0-1

[Event "26th Zadar Open 2019"]
[Site "Zadar"]
[Date "2019.12.17"]
[Round "4.24"]
[White "Ascic, Pero"]
[Black "Stocko, Josip"]
[Result "1/2-1/2"]
[ECO "B81"]
[WhiteElo "2310"]
[BlackElo "2267"]
[Annotator "NA"]
[PlyCount "81"]
[EventDate "2019.12.15"]
[EventType "swiss"]
[EventCountry "CRO"]
[SourceTitle "playchess.com"]
[Source "ChessBase"]
[SourceQuality "1"]
[TimeControl "40/5400+30:1800+30"]

1. e4 {[%emt 0:00:30]} c5 {[%emt 0:00:30]} 2. Nf3 {[%emt 0:00:00]} d6 {[%emt 0:00:00]} 3. d4 {[%emt 0:01:00]} cxd4 {[%emt 0:00:00]} 4. Nxd4 {[%emt 0:00:00]} Nf6 {[%emt 0:00:00]} 5. Nc3 {[%emt 0:00:00]} a6 $11 {[%emt 0:00:00]} 6. h3 {[%emt 0:03:30]} e6 {[%emt 0:00:00]} 7. g4 {[%emt 0:02:30]} Be7 {[%emt 0:00:00]} 8. Bg2 {[%emt 0:00:30]} Nfd7 {[%emt 0:00:30]} 9. O-O {[%emt 0:00:30]} O-O {[%emt 0:00:30]} 10. a4 {[%emt 0:02:30]} Nc6 {[%emt 0:00:30]} 11. Be3 {[%emt 0:00:30]} Qc7 {[%emt 0:06:30]} 12. Nce2 {[%emt 0:06:30]} Nxd4 {[%emt 0:04:30]} 13. Bxd4 {[%emt 0:01:30]} e5 {[%emt 0:05:30]} 14. Be3 {[%emt 0:04:30]} b6 {[%emt 0:06:30]} 15. Qd2 {[%emt 0:18:30]} Bb7 {[%emt 0:02:30]} 16. Nc3 {[%emt 0:01:30]} Rfc8 {[%emt 0:04:30]} 17. Rfc1 {[%emt 0:00:30]} Nf8 {[%emt 0:00:30]} 18. Nd5 {[%emt 0:06:30]} Bxd5 {[%emt 0:00:30]} 19. exd5 {[%emt 0:01:30]} a5 {[%emt 0:13:30]} 20. Ra3 {[%emt 0:05:30]} h6 {[%emt 0:01:30]} 21. Rc3 {[%emt 0:00:30]} Qd8 {[%emt 0:00:30]} 22. Rc6 {[%emt 0:00:30]} Bg5 {[%emt 0:01:30]} 23. Bxg5 {[%emt 0:01:30]} hxg5 {[%emt 0:00:30]} 24. Qe3 {[%emt 0:00:00]} Rab8 {[%emt 0:02:30]} 25. Rd1 {[%emt 0:11:00]} Ng6 {[%emt 0:01:30]} 26. Qa3 {[%emt 0:02:30]} Nf4 {[%emt 0:04:30]} 27. Rxd6 {[%emt 0:02:30]} Qf8 {[%emt 0:14:30]} 28. Rc6 {[%emt 0:03:30]} Nxg2 {[%emt 0:07:30]} 29. Kxg2 {[%emt 0:02:30]} Rxc6 {[%emt 0:08:36]} 30. dxc6 {[%emt 0:01:30]} Qxa3 {[%emt 0:00:12]} 31. bxa3 {[%emt 0:00:00]} Rc8 {[%emt 0:00:10]} 32. Rd6 {[%emt 0:05:26]} Kf8 {[%emt 0:05:04]} 33. c7 {[%emt 0:00:35]} Rxc7 {[%emt 0:00:09]} 34. Rxb6 {[%emt 0:00:12]} Rxc2 {[%emt 0:02:43]} 35. Rb5 {[%emt 0:02:02]} f6 {[%emt 0:03:56]} 36. Rxa5 {[%emt 0:00:10]} Rc3 {[%emt 0:00:40]} 37. Ra8+ {[%emt 0:01:22]} Kf7 {[%emt 0:00:32]} 38. a5 {[%emt 0:01:10]} Rxa3 {[%emt 0:00:12]} 39. Ra7+ {[%emt 0:02:30]} Ke6 {[%emt 0:04:56]} 40. a6 {[%emt 0:00:48]} Kd5 {[%emt 0:00:29]} 41. Rxg7 {[%emt 0:33:10]} 1/2-1/2

[Event "26th Zadar Open 2019"]
[Site "Zadar"]
[Date "2019.12.17"]
[Round "4.25"]
[White "Zelic, Mladen"]
[Black "Sutkovic, Damir"]
[Result "1/2-1/2"]
[ECO "B11"]
[WhiteElo "2254"]
[BlackElo "2292"]
[Annotator "NA"]
[PlyCount "89"]
[EventDate "2019.12.15"]
[EventType "swiss"]
[EventCountry "CRO"]
[SourceTitle "playchess.com"]
[Source "ChessBase"]
[SourceQuality "1"]
[TimeControl "40/5400+30:1800+30"]

1. e4 {[%emt 0:00:30]} c6 {[%emt 0:00:30]} 2. Nc3 {[%emt 0:00:30]} d5 {[%emt 0:00:00]} 3. Nf3 {[%emt 0:00:30]} Bg4 {[%emt 0:00:00]} 4. h3 {[%emt 0:00:30]} Bxf3 {[%emt 0:00:30]} 5. Qxf3 {[%emt 0:00:30]} e6 {[%emt 0:00:00]} 6. d4 {[%emt 0:00:30]} Nf6 {[%emt 0:00:00]} 7. Bd3 {[%emt 0:03:30]} dxe4 {[%emt 0:01:30]} 8. Nxe4 {[%emt 0:00:30]} Nxe4 {[%emt 0:00:30]} 9. Qxe4 {[%emt 0:00:30]} Nd7 {[%emt 0:00:30]} 10. c3 {[%emt 0:00:30]} Nf6 {[%emt 0:00:30]} 11. Qe2 {[%emt 0:01:30]} Bd6 {[%emt 0:02:30]} 12. O-O {[%emt 0:00:30]} Qc7 {[%emt 0:05:30]} 13. a4 {[%emt 0:08:30]} Bf4 {[%emt 0:03:30]} 14. b4 {[%emt 0:06:30]} Bxc1 {[%emt 0:07:30]} 15. Raxc1 {[%emt 0:00:30]} O-O {[%emt 0:01:30]} 16. f4 {[%emt 0:05:30]} Rfe8 {[%emt 0:07:30]} 17. Rf2 {[%emt 0:07:30]} a5 {[%emt 0:04:30]} 18. Qe5 {[%emt 0:28:30]} Rec8 {[%emt 0:15:30]} 19. f5 {[%emt 0:08:30]} Qxe5 {[%emt 0:00:30]} 20. dxe5 {[%emt 0:00:30]} Nd5 {[%emt 0:00:30]} 21. fxe6 {[%emt 0:03:30]} fxe6 {[%emt 0:00:30]} 22. bxa5 {[%emt 0:00:00]} Rxa5 {[%emt 0:05:30]} 23. Rb1 {[%emt 0:00:00]} Rb8 {[%emt 0:09:30]} 24. c4 {[%emt 0:01:30]} Nc3 {[%emt 0:01:30]} 25. Rbf1 {[%emt 0:01:30]} Rxe5 {[%emt 0:06:30]} 26. Rf7 {[%emt 0:00:30]} Nxa4 {[%emt 0:12:19]} 27. Rc7 {[%emt 0:06:31]} Nc5 {[%emt 0:00:29]} 28. Rff7 {[%emt 0:00:39]} Rg5 {[%emt 0:00:47]} 29. h4 {[%emt 0:06:07]} Rg4 {[%emt 0:01:25]} 30. Be2 {[%emt 0:02:40]} Rxh4 {[%emt 0:01:43]} 31. Rxg7+ {[%emt 0:00:09]} Kh8 {[%emt 0:00:12]} 32. Rg5 {[%emt 0:00:41]} Nb3 {[%emt 0:07:28]} 33. Rgg7 {[%emt 0:03:07]} Nd4 {[%emt 0:01:41]} 34. Bd3 {[%emt 0:00:29]} b5 {[%emt 0:00:30]} 35. cxb5 {[%emt 0:01:43]} cxb5 {[%emt 0:00:08]} 36. g3 {[%emt 0:01:20]} Rh6 {[%emt 0:00:40]} 37. Rxh7+ {[%emt 0:00:58]} Rxh7 {[%emt 0:00:07]} 38. Rxh7+ {[%emt 0:00:12]} Kg8 {[%emt 0:00:09]} 39. Rd7 {[%emt 0:00:27]} e5 {[%emt 0:02:37]} 40. Kg2 {[%emt 0:00:54]} b4 {[%emt 0:02:14]} 41. Re7 {[%emt 0:00:00]} b3 {[%emt 0:03:31]} 42. Rxe5 {[%emt 0:00:03]} b2 {[%emt 0:01:30]} 43. Re4 {[%emt 0:02:30]} Rb3 {[%emt 0:04:30]} 44. Rxd4 {[%emt 0:02:30]} Rxd3 {[%emt 0:00:30]} 45. Rb4 {[%emt 0:00:00]} 1/2-1/2

[Event "26th Zadar Open 2019"]
[Site "Zadar"]
[Date "2019.12.18"]
[Round "5.1"]
[White "Yeoh, Li Tian"]
[Black "Brkic, Ante"]
[Result "0-1"]
[ECO "C00"]
[WhiteElo "2530"]
[BlackElo "2576"]
[Annotator "ChessBase"]
[PlyCount "108"]
[EventDate "2019.12.15"]
[EventType "swiss"]
[EventCountry "CRO"]
[SourceTitle "playchess.com"]
[Source "ChessBase"]
[SourceQuality "1"]
[TimeControl "40/5400+30:1800+30"]

1. Nf3 {[%emt 0:00:30]} Nf6 {[%emt 0:00:30]} 2. g3 {[%emt 0:00:00]} d5 {[%emt 0:00:00]} 3. Bg2 {[%emt 0:00:00]} e6 {[%emt 0:00:00]} 4. O-O {[%emt 0:00:30]} Be7 {[%emt 0:00:30]} 5. d3 {[%emt 0:00:00]} c5 {[%emt 0:00:00]} 6. Nbd2 {[%emt 0:00:00]} Nc6 {[%emt 0:00:00]} 7. e4 {[%emt 0:00:30]} O-O {[%emt 0:00:30]} 8. Re1 {[%emt 0:00:00]} b5 {[%emt 0:00:00]} 9. e5 {[%emt 0:00:00]} Nd7 {[%emt 0:00:00]} 10. Nf1 {[%emt 0:00:00]} Bb7 {[%emt 0:00:00]} 11. h4 {[%emt 0:00:00]} Qc7 {[%emt 0:00:00]} 12. Bf4 {[%emt 0:00:30]} Rfc8 {[%emt 0:00:30]} 13. h5 {[%emt 0:09:30]} h6 {[%emt 0:00:30]} 14. Ne3 {[%emt 0:05:30]} Qd8 {[%emt 0:00:30]} 15. c3 {[%emt 0:06:30]} a5 {[%emt 0:03:30]} 16. a4 {[%emt 0:09:30]} b4 {[%emt 0:23:30]} 17. Ng4 {[%emt 0:12:30]} bxc3 {[%emt 0:05:30]} 18. bxc3 {[%emt 0:00:30]} Bf8 {[%emt 0:10:30]} 19. Bc1 {[%emt 0:17:30]} Qc7 {[%emt 0:14:30]} 20. Qe2 {[%emt 0:08:30]} Ra6 {[%emt 0:18:30]} 21. Nd2 {[%emt 0:04:30]} Ne7 {[%emt 0:02:14]} 22. f4 {[%emt 0:02:30]} Nf5 {[%emt 0:00:46]} 23. Nf1 {[%emt 0:00:30]} Bc6 {[%emt 0:03:57]} 24. Nge3 {[%emt 0:08:58]} Nxe3 {[%emt 0:01:43]} 25. Nxe3 {[%emt 0:00:13]} d4 {[%emt 0:01:14]} 26. Nc4 {[%emt 0:00:55]} dxc3 {[%emt 0:01:33]} 27. Qc2 {[%emt 0:01:38]} Nb6 {[%emt 0:00:36]} 28. Qxc3 {[%emt 0:00:41]} Nxa4 {[%emt 0:05:12]} 29. Qc2 {[%emt 0:01:29]} Nb6 {[%emt 0:00:32]} 30. Rxa5 {[%emt 0:00:50]} Rxa5 {[%emt 0:01:09]} 31. Nxa5 {[%emt 0:00:07]} Bxg2 {[%emt 0:00:54]} 32. Kxg2 {[%emt 0:02:12]} Nd5 {[%emt 0:02:56]} 33. Bd2 {[%emt 0:04:43]} Ra8 {[%emt 0:01:24]} 34. Nb3 {[%emt 0:04:50]} Ra3 {[%emt 0:00:02]} 35. Rb1 {[%emt 0:00:41]} Qa7 {[%emt 0:01:40]} 36. Kh3 {[%emt 0:00:35]} Qa8 {[%emt 0:01:18]} 37. Qd1 {[%emt 0:00:23]} Qa4 {[%emt 0:01:15]} 38. Qc2 {[%emt 0:00:28]} Qa8 {[%emt 0:00:37]} 39. Qd1 {[%emt 0:00:04]} Nb4 {[%emt 0:00:54]} 40. Nxc5 {[%emt 0:01:08]} Nxd3 {[%emt 0:00:00]} 41. Nxd3 {[%emt 0:02:05]} Rxd3 {[%emt 0:02:34]} 42. Qe2 {[%emt 0:19:52]} Qd5 {[%emt 0:00:30]} 43. Ba5 {[%emt 0:00:08]} Ra3 {[%emt 0:03:30]} 44. Bb6 {[%emt 0:08:50]} Ra2 {[%emt 0:00:30]} 45. Rb2 {[%emt 0:01:05]} Ra1 {[%emt 0:01:30]} 46. Qe3 {[%emt 0:00:45]} Rh1+ {[%emt 0:05:30]} 47. Rh2 {[%emt 0:00:04]} Qd1 {[%emt 0:00:30]} 48. g4 {[%emt 0:01:07]} Rxh2+ {[%emt 0:00:56]} 49. Kxh2 {[%emt 0:00:04]} Qxg4 {[%emt 0:00:04]} 50. Qd4 {[%emt 0:00:42]} Qxh5+ {[%emt 0:00:58]} 51. Kg3 {[%emt 0:00:05]} g5 {[%emt 0:00:58]} 52. fxg5 {[%emt 0:00:50]} Qxg5+ {[%emt 0:00:13]} 53. Kf3 {[%emt 0:00:49]} Bg7 {[%emt 0:00:33]} 54. Bc7 {[%emt 0:00:26]} Qf5+ {[%emt 0:00:28]} 0-1